[Event "*** SCC Grand Prix: Titled Tuesday Blitz"]
[Site "Chess.com"]
[Date "2020.07.07"]
[Round "4"]
[White "vitnik2020"]
[Black "QueenOfTactics90"]
[Result "1-0"]
[WhiteElo "2281"]
[BlackElo "2019"]
[TimeControl "180+1"]
[EndTime "10:39:26 PDT"]
[Termination "vitnik2020 won by resignation"]

1. d4 {[%clk 0:03:00.9]} 1... Nf6 {[%clk 0:02:59.1]} 2. c4 {[%clk 0:02:59.7]}
2... e6 {[%clk 0:02:59.5]} 3. Nf3 {[%clk 0:02:59]} 3... d5 {[%clk 0:03:00.4]} 4.
e3 {[%clk 0:02:58.5]} 4... c5 {[%clk 0:03:00]} 5. cxd5 {[%clk 0:02:57.7]} 5...
exd5 {[%clk 0:02:59.6]} 6. Bb5+ {[%clk 0:02:57.3]} 6... Nc6 {[%clk 0:02:57.1]}
7. O-O {[%clk 0:02:56]} 7... a6 {[%clk 0:02:55.6]} 8. Bxc6+ {[%clk 0:02:42.3]}
8... bxc6 {[%clk 0:02:56.5]} 9. b3 {[%clk 0:02:42.3]} 9... h6 {[%clk 0:02:54.1]}
10. Bb2 {[%clk 0:02:38.6]} 10... Bf5 {[%clk 0:02:47]} 11. Nbd2 {[%clk 0:02:37]}
11... Ne4 {[%clk 0:02:06.1]} 12. Nxe4 {[%clk 0:02:23.7]} 12... dxe4 {[%clk
0:02:05.4]} 13. Ne5 {[%clk 0:02:11.1]} 13... Qd5 {[%clk 0:01:39]} 14. dxc5
{[%clk 0:01:33.4]} 14... Bxc5 {[%clk 0:01:30.1]} 15. Qc2 {[%clk 0:01:31.7]}
15... Bd6 {[%clk 0:00:51.2]} 16. Rfd1 {[%clk 0:01:30.5]} 16... Qc5 {[%clk
0:00:32.9]} 17. Qxc5 {[%clk 0:01:29]} 17... Bxc5 {[%clk 0:00:32.9]} 18. Rac1
{[%clk 0:01:28.6]} 18... Be7 {[%clk 0:00:21.6]} 19. Nxc6 {[%clk 0:01:26.7]}
19... f6 {[%clk 0:00:17.8]} 20. Nxe7 {[%clk 0:01:24.3]} 20... Kxe7 {[%clk
0:00:18.7]} 21. Rc7+ {[%clk 0:01:23.6]} 21... Kf8 {[%clk 0:00:17.1]} 22. h3
{[%clk 0:01:07.5]} 22... h5 {[%clk 0:00:16.6]} 23. Rd5 {[%clk 0:00:59.9]} 23...
Be6 {[%clk 0:00:14.1]} 24. Rd6 {[%clk 0:00:59.4]} 24... Bf5 {[%clk 0:00:12.9]}
25. Bxf6 {[%clk 0:00:54.2]} 25... gxf6 {[%clk 0:00:10]} 26. Rxf6+ {[%clk
0:00:53.4]} 26... Ke8 {[%clk 0:00:10.6]} 27. Rxf5 {[%clk 0:00:52.8]} 27... Rd8
{[%clk 0:00:10.7]} 28. Re5+ {[%clk 0:00:51.2]} 28... Kf8 {[%clk 0:00:11]} 29.
Rxe4 {[%clk 0:00:50.9]} 29... Rd1+ {[%clk 0:00:10.9]} 30. Kh2 {[%clk 0:00:49.9]}
30... Rd2 {[%clk 0:00:11.4]} 31. Rf4+ {[%clk 0:00:47.5]} 31... Ke8 {[%clk
0:00:10.9]} 32. a4 {[%clk 0:00:44.9]} 32... Kd8 {[%clk 0:00:09.4]} 33. Ra7
{[%clk 0:00:43.6]} 33... Rb2 {[%clk 0:00:08.4]} 34. Ra8+ {[%clk 0:00:42.9]} 1-0

[Event "*** SCC Grand Prix: Titled Tuesday Blitz"]
[Site "Chess.com"]
[Date "2020.07.07"]
[Round "4"]
[White "dretch"]
[Black "SharapovEvgeny"]
[Result "0-1"]
[WhiteElo "2792"]
[BlackElo "2434"]
[TimeControl "180+1"]
[EndTime "10:39:31 PDT"]
[Termination "SharapovEvgeny won by resignation"]

1. d4 {[%clk 0:02:57.7]} 1... d5 {[%clk 0:02:59.9]} 2. c4 {[%clk 0:02:55.9]}
2... c6 {[%clk 0:03:00]} 3. Nc3 {[%clk 0:02:53]} 3... Nf6 {[%clk 0:03:00]} 4. e3
{[%clk 0:02:52.5]} 4... g6 {[%clk 0:02:59.4]} 5. Nf3 {[%clk 0:02:51.5]} 5... Bg7
{[%clk 0:02:59.5]} 6. Be2 {[%clk 0:02:49.2]} 6... O-O {[%clk 0:02:59.4]} 7. O-O
{[%clk 0:02:49.4]} 7... Bg4 {[%clk 0:02:58.6]} 8. Qb3 {[%clk 0:02:46.2]} 8...
Qb6 {[%clk 0:02:57.8]} 9. Qxb6 {[%clk 0:02:45]} 9... axb6 {[%clk 0:02:57.4]} 10.
cxd5 {[%clk 0:02:44.9]} 10... Nxd5 {[%clk 0:02:56.2]} 11. Nxd5 {[%clk
0:02:38.8]} 11... cxd5 {[%clk 0:02:55.6]} 12. h3 {[%clk 0:02:38.8]} 12... Bxf3
{[%clk 0:02:55.1]} 13. Bxf3 {[%clk 0:02:39]} 13... e6 {[%clk 0:02:55.1]} 14. Bd2
{[%clk 0:02:36]} 14... Nc6 {[%clk 0:02:54.6]} 15. Rfc1 {[%clk 0:02:31.1]} 15...
Rfc8 {[%clk 0:02:53.7]} 16. Kf1 {[%clk 0:02:20.9]} 16... Bf8 {[%clk 0:02:48.9]}
17. Ke2 {[%clk 0:02:13.7]} 17... Nb4 {[%clk 0:02:42.3]} 18. Rc3 {[%clk
0:02:02.2]} 18... Rxc3 {[%clk 0:02:35.5]} 19. bxc3 {[%clk 0:01:58]} 19... Nc6
{[%clk 0:02:26.3]} 20. e4 {[%clk 0:01:51.1]} 20... dxe4 {[%clk 0:02:23.3]} 21.
Bxe4 {[%clk 0:01:51]} 21... f5 {[%clk 0:02:17.3]} 22. Bc2 {[%clk 0:01:31.2]}
22... b5 {[%clk 0:02:15]} 23. Bb3 {[%clk 0:01:25.1]} 23... Kf7 {[%clk
0:02:14.2]} 24. d5 {[%clk 0:01:24]} 24... exd5 {[%clk 0:02:12.1]} 25. Bxd5+
{[%clk 0:01:24.9]} 25... Kf6 {[%clk 0:02:11.1]} 26. Rb1 {[%clk 0:01:24.1]} 26...
Ra5 {[%clk 0:02:00.3]} 27. f4 {[%clk 0:01:13.9]} 27... b4 {[%clk 0:01:59.4]} 28.
Bb3 {[%clk 0:01:07.3]} 28... Ra8 {[%clk 0:01:51.6]} 29. g4 {[%clk 0:01:02.5]}
29... Re8+ {[%clk 0:01:49.3]} 30. Kd3 {[%clk 0:00:54.7]} 30... Rd8+ {[%clk
0:01:48.6]} 31. Kc2 {[%clk 0:00:54.6]} 31... Bc5 {[%clk 0:01:45.2]} 32. Re1
{[%clk 0:00:51.1]} 32... bxc3 {[%clk 0:01:43.6]} 33. Bxc3+ {[%clk 0:00:50.5]}
33... Bd4 {[%clk 0:01:43.7]} 34. Re6+ {[%clk 0:00:45.2]} 34... Kg7 {[%clk
0:01:42.7]} 35. gxf5 {[%clk 0:00:44]} 35... Bxc3 {[%clk 0:01:38.6]} 36. Kxc3
{[%clk 0:00:43.6]} 36... gxf5 {[%clk 0:01:38.2]} 37. Bc2 {[%clk 0:00:30.5]}
37... Rc8 {[%clk 0:01:20.7]} 38. Rd6 {[%clk 0:00:09]} 38... Nb4+ {[%clk
0:01:05.1]} 39. Kxb4 {[%clk 0:00:09]} 39... Rxc2 {[%clk 0:01:04.7]} 40. Rd7+
{[%clk 0:00:08.2]} 40... Kg6 {[%clk 0:01:04.5]} 41. a4 {[%clk 0:00:09]} 41...
Rf2 {[%clk 0:01:00.7]} 42. Rxb7 {[%clk 0:00:08.2]} 42... Rb2+ {[%clk 0:00:59.8]}
43. Kc5 {[%clk 0:00:07.7]} 43... Rxb7 {[%clk 0:00:59]} 44. a5 {[%clk 0:00:08.6]}
44... Rb3 {[%clk 0:00:55.2]} 0-1

[Event "*** SCC Grand Prix: Titled Tuesday Blitz"]
[Site "Chess.com"]
[Date "2020.07.07"]
[Round "4"]
[White "NormWeinstein"]
[Black "fabianvivasz"]
[Result "1-0"]
[WhiteElo "2440"]
[BlackElo "2267"]
[TimeControl "180+1"]
[EndTime "10:39:32 PDT"]
[Termination "NormWeinstein won on time"]

1. e4 {[%clk 0:03:00.9]} 1... e5 {[%clk 0:02:57.3]} 2. Nf3 {[%clk 0:03:00.1]}
2... Nc6 {[%clk 0:02:57.9]} 3. Bb5 {[%clk 0:02:58.8]} 3... f5 {[%clk 0:02:58.2]}
4. d3 {[%clk 0:02:57.6]} 4... fxe4 {[%clk 0:02:58.2]} 5. dxe4 {[%clk 0:02:58.1]}
5... Nf6 {[%clk 0:02:59.1]} 6. O-O {[%clk 0:02:57.7]} 6... Bc5 {[%clk
0:02:59.4]} 7. Bg5 {[%clk 0:02:56]} 7... d6 {[%clk 0:02:51.2]} 8. Bc4 {[%clk
0:02:54.1]} 8... h6 {[%clk 0:02:33.6]} 9. Bxf6 {[%clk 0:02:49.1]} 9... Qxf6
{[%clk 0:02:34.5]} 10. h3 {[%clk 0:02:47.1]} 10... Be6 {[%clk 0:02:30.2]} 11.
Bxe6 {[%clk 0:02:38.9]} 11... Qxe6 {[%clk 0:02:31.1]} 12. Nc3 {[%clk 0:02:36.1]}
12... O-O {[%clk 0:02:21]} 13. Nd5 {[%clk 0:02:34]} 13... Rf7 {[%clk 0:02:15.7]}
14. Ne1 {[%clk 0:02:18.8]} 14... a5 {[%clk 0:01:38.3]} 15. Nd3 {[%clk
0:02:14.6]} 15... Ba7 {[%clk 0:01:38]} 16. c3 {[%clk 0:02:14.3]} 16... Raf8
{[%clk 0:01:29.6]} 17. Qb3 {[%clk 0:02:12.7]} 17... Nd8 {[%clk 0:01:17.3]} 18.
c4 {[%clk 0:01:43.5]} 18... Bd4 {[%clk 0:01:00]} 19. Nc3 {[%clk 0:01:33.2]}
19... Rf3 {[%clk 0:00:23.7]} 20. Qd1 {[%clk 0:00:49.8]} 20... Rxh3 {[%clk
0:00:06.7]} 21. Ne2 {[%clk 0:00:49.6]} 21... Rh4 {[%clk 0:00:03.4]} 22. Nxd4
{[%clk 0:00:47.5]} 22... exd4 {[%clk 0:00:04.3]} 23. f3 {[%clk 0:00:41.9]} 23...
Nc6 {[%clk 0:00:03.8]} 24. Qd2 {[%clk 0:00:33.1]} 24... Ne5 {[%clk 0:00:03.5]}
25. b3 {[%clk 0:00:32.2]} 25... Qg6 {[%clk 0:00:02.7]} 26. Ne1 {[%clk
0:00:27.2]} 26... Qh5 {[%clk 0:00:01.3]} 27. Kf2 {[%clk 0:00:25.4]} 27... Rh2
{[%clk 0:00:01.2]} 28. Ke2 {[%clk 0:00:24.4]} 28... d3+ {[%clk 0:00:01.1]} 29.
Kd1 {[%clk 0:00:24.1]} 1-0

[Event "*** SCC Grand Prix: Titled Tuesday Blitz"]
[Site "Chess.com"]
[Date "2020.07.07"]
[Round "4"]
[White "chegueps"]
[Black "Chernobay_Artem"]
[Result "0-1"]
[WhiteElo "2401"]
[BlackElo "2609"]
[TimeControl "180+1"]
[EndTime "10:39:35 PDT"]
[Termination "Chernobay_Artem won by resignation"]

1. d4 {[%clk 0:03:00.9]} 1... Nf6 {[%clk 0:02:59.7]} 2. Nf3 {[%clk 0:02:59.6]}
2... c5 {[%clk 0:02:58.1]} 3. e3 {[%clk 0:02:59.5]} 3... g6 {[%clk 0:02:54.7]}
4. Bd3 {[%clk 0:02:57.5]} 4... Bg7 {[%clk 0:02:54.1]} 5. O-O {[%clk 0:02:57.9]}
5... O-O {[%clk 0:02:53.5]} 6. b3 {[%clk 0:02:56.7]} 6... cxd4 {[%clk
0:02:45.9]} 7. exd4 {[%clk 0:02:57.6]} 7... d5 {[%clk 0:02:44.3]} 8. Nbd2 {[%clk
0:02:52.7]} 8... Nc6 {[%clk 0:02:42.4]} 9. Bb2 {[%clk 0:02:52.1]} 9... Nb4
{[%clk 0:02:40.4]} 10. Be2 {[%clk 0:02:49.5]} 10... Bf5 {[%clk 0:02:39.6]} 11.
c3 {[%clk 0:02:48]} 11... Nd3 {[%clk 0:02:19.7]} 12. Bxd3 {[%clk 0:02:24]} 12...
Bxd3 {[%clk 0:02:20.6]} 13. Re1 {[%clk 0:02:24.9]} 13... Rc8 {[%clk 0:02:15.4]}
14. Ne5 {[%clk 0:02:23.6]} 14... Bf5 {[%clk 0:02:14.4]} 15. c4 {[%clk
0:02:17.7]} 15... dxc4 {[%clk 0:01:34.9]} 16. bxc4 {[%clk 0:02:16.2]} 16... Qa5
{[%clk 0:01:33.8]} 17. Nb3 {[%clk 0:02:13]} 17... Qa4 {[%clk 0:01:32.8]} 18. Qf3
{[%clk 0:02:08.5]} 18... b6 {[%clk 0:01:27]} 19. c5 {[%clk 0:01:53.6]} 19... Be6
{[%clk 0:01:21.5]} 20. h3 {[%clk 0:01:04.3]} 20... Bd5 {[%clk 0:01:20.2]} 21.
Qd3 {[%clk 0:01:04.5]} 21... Rfd8 {[%clk 0:01:17.3]} 22. Rec1 {[%clk 0:00:49.6]}
22... Nd7 {[%clk 0:01:02.9]} 23. Nxd7 {[%clk 0:00:32.5]} 23... Qxd7 {[%clk
0:01:01.8]} 24. Qa6 {[%clk 0:00:29.2]} 24... Qb7 {[%clk 0:00:37.7]} 25. Qxb7
{[%clk 0:00:17.9]} 25... Bxb7 {[%clk 0:00:38.6]} 26. a4 {[%clk 0:00:13.3]} 26...
Bd5 {[%clk 0:00:38.2]} 27. Ra3 {[%clk 0:00:08.3]} 27... Rb8 {[%clk 0:00:36.2]}
28. cxb6 {[%clk 0:00:06.1]} 28... Rxb6 {[%clk 0:00:35.1]} 29. Rc3 {[%clk
0:00:06.5]} 29... Rdb8 {[%clk 0:00:34.4]} 30. Rc5 {[%clk 0:00:05.4]} 30... Bxb3
{[%clk 0:00:33.8]} 31. a5 {[%clk 0:00:06]} 31... Rb5 {[%clk 0:00:32.3]} 32. Bc1
{[%clk 0:00:06]} 32... Bxd4 {[%clk 0:00:30.6]} 33. Rxb5 {[%clk 0:00:05.3]} 33...
Rxb5 {[%clk 0:00:30.1]} 0-1

[Event "*** SCC Grand Prix: Titled Tuesday Blitz"]
[Site "Chess.com"]
[Date "2020.07.07"]
[Round "4"]
[White "Nikithebest"]
[Black "bgfbfbgfbgfgf"]
[Result "1/2-1/2"]
[WhiteElo "2477"]
[BlackElo "2632"]
[TimeControl "180+1"]
[EndTime "10:39:37 PDT"]
[Termination "Game drawn by repetition"]

1. e4 {[%clk 0:03:00.9]} 1... e5 {[%clk 0:02:59.7]} 2. Nf3 {[%clk 0:03:00.3]}
2... Nc6 {[%clk 0:02:59.4]} 3. Nc3 {[%clk 0:03:00.5]} 3... Nf6 {[%clk
0:02:59.1]} 4. d4 {[%clk 0:03:00.6]} 4... exd4 {[%clk 0:02:59.3]} 5. Nxd4 {[%clk
0:03:00.4]} 5... Bb4 {[%clk 0:02:55.4]} 6. Nxc6 {[%clk 0:03:00]} 6... bxc6
{[%clk 0:02:56.3]} 7. Bd3 {[%clk 0:03:00.2]} 7... O-O {[%clk 0:02:53.6]} 8. O-O
{[%clk 0:02:59.6]} 8... d5 {[%clk 0:02:54.1]} 9. exd5 {[%clk 0:02:59.6]} 9...
cxd5 {[%clk 0:02:55]} 10. h3 {[%clk 0:02:59.5]} 10... c6 {[%clk 0:02:52.6]} 11.
Qf3 {[%clk 0:02:59.4]} 11... Rb8 {[%clk 0:02:51.3]} 12. Bf4 {[%clk 0:02:59.3]}
12... Bd6 {[%clk 0:02:51.5]} 13. b3 {[%clk 0:02:58.6]} 13... Rb4 {[%clk
0:02:47.9]} 14. Bxd6 {[%clk 0:02:57.7]} 14... Qxd6 {[%clk 0:02:47.7]} 15. Qe3
{[%clk 0:02:57.9]} 15... Re8 {[%clk 0:01:44.6]} 16. Qxa7 {[%clk 0:02:45.1]}
16... Bxh3 {[%clk 0:01:29.5]} 17. gxh3 {[%clk 0:02:23.1]} 17... Ng4 {[%clk
0:01:29.3]} 18. f4 {[%clk 0:02:16.8]} 18... Rxf4 {[%clk 0:01:04.7]} 19. Rxf4
{[%clk 0:02:09.6]} 19... Qxf4 {[%clk 0:01:05.6]} 20. hxg4 {[%clk 0:02:00.1]}
20... Qxg4+ {[%clk 0:01:03.3]} 21. Kf1 {[%clk 0:01:46.8]} 21... Qh3+ {[%clk
0:00:57.4]} 22. Kf2 {[%clk 0:01:21.8]} 22... Qh2+ {[%clk 0:00:48]} 23. Kf1
{[%clk 0:01:22]} 23... Qh3+ {[%clk 0:00:44.1]} 24. Kf2 {[%clk 0:01:21.1]} 24...
Qh4+ {[%clk 0:00:38.7]} 25. Kf1 {[%clk 0:01:17.8]} 25... Qf6+ {[%clk 0:00:21.9]}
26. Qf2 {[%clk 0:01:12.5]} 26... Qxc3 {[%clk 0:00:21.9]} 27. Re1 {[%clk
0:01:11.9]} 27... Rf8 {[%clk 0:00:22.2]} 28. a4 {[%clk 0:01:11.3]} 28... f5
{[%clk 0:00:15.9]} 29. Re7 {[%clk 0:01:08.3]} 29... Qf6 {[%clk 0:00:11.2]} 30.
Qe2 {[%clk 0:01:07]} 30... Qh4 {[%clk 0:00:03]} 31. Re8 {[%clk 0:00:54.8]} 31...
Qh1+ {[%clk 0:00:01.9]} 32. Kf2 {[%clk 0:00:54]} 32... Qh4+ {[%clk 0:00:01.3]}
33. Kf1 {[%clk 0:00:46.6]} 33... Qh1+ {[%clk 0:00:01.4]} 34. Kf2 {[%clk
0:00:46.8]} 34... Qh4+ {[%clk 0:00:02.1]} 35. Kg2 {[%clk 0:00:47.3]} 35... Qg5+
{[%clk 0:00:02.5]} 36. Kf2 {[%clk 0:00:40.7]} 36... Qh4+ {[%clk 0:00:02.6]}
1/2-1/2

[Event "*** SCC Grand Prix: Titled Tuesday Blitz"]
[Site "Chess.com"]
[Date "2020.07.07"]
[Round "4"]
[White "GigaQuparadze"]
[Black "kushagramohan"]
[Result "1-0"]
[WhiteElo "2885"]
[BlackElo "2704"]
[TimeControl "180+1"]
[EndTime "10:39:38 PDT"]
[Termination "GigaQuparadze won by checkmate"]

1. e4 {[%clk 0:03:00.9]} 1... d6 {[%clk 0:03:00.1]} 2. d4 {[%clk 0:03:00.6]}
2... Nf6 {[%clk 0:03:00.7]} 3. Nc3 {[%clk 0:03:01]} 3... g6 {[%clk 0:03:01.2]}
4. f4 {[%clk 0:03:00.1]} 4... Bg7 {[%clk 0:03:01.3]} 5. Nf3 {[%clk 0:03:00.4]}
5... c5 {[%clk 0:03:01.9]} 6. d5 {[%clk 0:02:57.5]} 6... O-O {[%clk 0:03:00.3]}
7. a4 {[%clk 0:02:53.5]} 7... e6 {[%clk 0:02:53.5]} 8. dxe6 {[%clk 0:02:50.9]}
8... fxe6 {[%clk 0:02:52.3]} 9. Bc4 {[%clk 0:02:48.4]} 9... Nxe4 {[%clk
0:02:43.6]} 10. Nxe4 {[%clk 0:02:41.6]} 10... d5 {[%clk 0:02:44.1]} 11. Bd3
{[%clk 0:02:39]} 11... c4 {[%clk 0:02:26.6]} 12. Be2 {[%clk 0:02:38.6]} 12...
dxe4 {[%clk 0:02:22.3]} 13. Qxd8 {[%clk 0:02:38.2]} 13... Rxd8 {[%clk
0:02:21.3]} 14. Ng5 {[%clk 0:02:36.8]} 14... c3 {[%clk 0:02:10.6]} 15. Rb1
{[%clk 0:02:36.5]} 15... Nc6 {[%clk 0:02:04.4]} 16. Nxe4 {[%clk 0:02:35.1]}
16... cxb2 {[%clk 0:02:00.7]} 17. Bxb2 {[%clk 0:02:36]} 17... Nd4 {[%clk
0:02:00.9]} 18. Bd3 {[%clk 0:02:33.6]} 18... Bd7 {[%clk 0:01:56]} 19. Nc5 {[%clk
0:02:29.8]} 19... Bc6 {[%clk 0:01:54.4]} 20. O-O {[%clk 0:02:28]} 20... b6
{[%clk 0:01:52]} 21. Na6 {[%clk 0:02:20.7]} 21... Bxa4 {[%clk 0:01:47.9]} 22. c3
{[%clk 0:02:19.2]} 22... Bb5 {[%clk 0:01:39.8]} 23. Bxb5 {[%clk 0:02:13.8]}
23... Nxb5 {[%clk 0:01:40.7]} 24. c4 {[%clk 0:02:14.1]} 24... Nd4 {[%clk
0:01:40.8]} 25. Rfe1 {[%clk 0:01:54.7]} 25... Rac8 {[%clk 0:01:35.5]} 26. Rbc1
{[%clk 0:01:54.1]} 26... Nf3+ {[%clk 0:01:24.1]} 27. gxf3 {[%clk 0:01:53.6]}
27... Bxb2 {[%clk 0:01:24.6]} 28. Rc2 {[%clk 0:01:54]} 28... Bd4+ {[%clk
0:01:24.2]} 29. Kg2 {[%clk 0:01:54.2]} 29... Kf7 {[%clk 0:01:19.2]} 30. Nb4
{[%clk 0:01:31.1]} 30... b5 {[%clk 0:01:10.6]} 31. cxb5 {[%clk 0:01:28.3]} 31...
Bc3 {[%clk 0:01:09.1]} 32. Rec1 {[%clk 0:01:25.4]} 32... Rc4 {[%clk 0:01:03.5]}
33. Nc6 {[%clk 0:01:23]} 33... Rd3 {[%clk 0:00:59]} 34. Ne5+ {[%clk 0:01:21.5]}
34... Bxe5 {[%clk 0:00:58.5]} 35. Rxc4 {[%clk 0:01:21.6]} 35... Rd2+ {[%clk
0:00:57.1]} 36. Kg3 {[%clk 0:01:20.2]} 36... Bd6 {[%clk 0:00:57.5]} 37. R1c2
{[%clk 0:01:18.9]} 37... Rd1 {[%clk 0:00:56.8]} 38. Kg2 {[%clk 0:01:13.9]} 38...
Kf6 {[%clk 0:00:54.7]} 39. Ra2 {[%clk 0:01:08]} 39... h5 {[%clk 0:00:47.8]} 40.
h4 {[%clk 0:01:04.4]} 40... Rb1 {[%clk 0:00:44.9]} 41. Ra6 {[%clk 0:01:02.9]}
41... Ke7 {[%clk 0:00:40.6]} 42. Rcc6 {[%clk 0:01:01.2]} 42... Bxf4 {[%clk
0:00:36.3]} 43. Rxe6+ {[%clk 0:01:00.6]} 43... Kd7 {[%clk 0:00:36.7]} 44. Rxg6
{[%clk 0:01:00.3]} 44... Rb2+ {[%clk 0:00:36.7]} 45. Kf1 {[%clk 0:01:00]} 45...
Be3 {[%clk 0:00:34.7]} 46. Rg7+ {[%clk 0:00:57.4]} 46... Kc8 {[%clk 0:00:29.9]}
47. Re6 {[%clk 0:00:55.4]} 47... Bd4 {[%clk 0:00:24]} 48. Re8# {[%clk
0:00:53.7]} 1-0

[Event "*** SCC Grand Prix: Titled Tuesday Blitz"]
[Site "Chess.com"]
[Date "2020.07.07"]
[Round "4"]
[White "anon569"]
[Black "DortmundCity"]
[Result "0-1"]
[WhiteElo "2358"]
[BlackElo "2601"]
[TimeControl "180+1"]
[EndTime "10:39:38 PDT"]
[Termination "DortmundCity won on time"]

1. e4 {[%clk 0:03:00.9]} 1... c5 {[%clk 0:02:59.9]} 2. Nf3 {[%clk 0:03:00.6]}
2... d6 {[%clk 0:02:58.8]} 3. d4 {[%clk 0:03:00.6]} 3... cxd4 {[%clk 0:02:59]}
4. Nxd4 {[%clk 0:03:01.2]} 4... Nf6 {[%clk 0:02:59.6]} 5. Nc3 {[%clk 0:03:01.7]}
5... Nc6 {[%clk 0:02:57.5]} 6. Bg5 {[%clk 0:03:01.9]} 6... Bd7 {[%clk
0:02:49.5]} 7. Qd2 {[%clk 0:03:00.8]} 7... Rc8 {[%clk 0:02:48.3]} 8. f4 {[%clk
0:02:58.6]} 8... h6 {[%clk 0:02:46.4]} 9. Bh4 {[%clk 0:02:56.8]} 9... g5 {[%clk
0:02:41.4]} 10. fxg5 {[%clk 0:02:53.9]} 10... hxg5 {[%clk 0:02:42.3]} 11. Bxg5
{[%clk 0:02:53.2]} 11... Bg7 {[%clk 0:02:42.2]} 12. Nb3 {[%clk 0:02:39]} 12...
Ng4 {[%clk 0:02:32.8]} 13. O-O-O {[%clk 0:02:27]} 13... a5 {[%clk 0:02:09]} 14.
Kb1 {[%clk 0:01:19.3]} 14... Bxc3 {[%clk 0:02:01]} 15. Qxc3 {[%clk 0:01:18.6]}
15... Rg8 {[%clk 0:02:01.4]} 16. Qd2 {[%clk 0:01:12.9]} 16... a4 {[%clk
0:02:00.6]} 17. Nc1 {[%clk 0:01:09]} 17... a3 {[%clk 0:02:01]} 18. b3 {[%clk
0:01:06.2]} 18... Qa5 {[%clk 0:02:00.2]} 19. Bf4 {[%clk 0:00:54.6]} 19... Nb4
{[%clk 0:01:56.7]} 20. c3 {[%clk 0:00:47.8]} 20... Na6 {[%clk 0:01:45.7]} 21. b4
{[%clk 0:00:40]} 21... Qc7 {[%clk 0:01:41.3]} 22. h3 {[%clk 0:00:24]} 22... Nf6
{[%clk 0:01:33.8]} 23. Bd3 {[%clk 0:00:14.8]} 23... Qxc3 {[%clk 0:01:32.2]} 24.
Qxc3 {[%clk 0:00:14.4]} 24... Rxc3 {[%clk 0:01:31.7]} 25. Bd2 {[%clk 0:00:15]}
25... Rxd3 {[%clk 0:01:22.3]} 26. Nxd3 {[%clk 0:00:14.5]} 26... Nxe4 {[%clk
0:01:22.7]} 27. Rhe1 {[%clk 0:00:13.8]} 27... d5 {[%clk 0:01:18.3]} 28. Nf4
{[%clk 0:00:12.3]} 28... e6 {[%clk 0:01:15.3]} 29. g4 {[%clk 0:00:09.7]} 29...
Ba4 {[%clk 0:01:14.8]} 30. Nh5 {[%clk 0:00:07.2]} 30... Bxd1 {[%clk 0:01:13.1]}
31. Rxd1 {[%clk 0:00:07.3]} 31... Kd7 {[%clk 0:01:08.5]} 32. Be1 {[%clk
0:00:07]} 32... Rc8 {[%clk 0:01:07.9]} 33. Rd3 {[%clk 0:00:06.1]} 33... Rc4
{[%clk 0:01:05.5]} 34. Rxa3 {[%clk 0:00:05.9]} 34... Nxb4 {[%clk 0:01:04.7]} 35.
Rb3 {[%clk 0:00:06.1]} 35... Nc2 {[%clk 0:01:00.6]} 36. Bh4 {[%clk 0:00:04.1]}
36... Kc6 {[%clk 0:00:59.2]} 37. Kb2 {[%clk 0:00:02.2]} 37... b5 {[%clk
0:00:57.3]} 38. Nf4 {[%clk 0:00:02.1]} 38... Nd4 {[%clk 0:00:56.5]} 0-1

[Event "*** SCC Grand Prix: Titled Tuesday Blitz"]
[Site "Chess.com"]
[Date "2020.07.07"]
[Round "4"]
[White "metalbattler"]
[Black "Shivagami"]
[Result "0-1"]
[WhiteElo "2010"]
[BlackElo "2202"]
[TimeControl "180+1"]
[EndTime "10:39:39 PDT"]
[Termination "Shivagami won by resignation"]

1. e4 {[%clk 0:03:00.9]} 1... c5 {[%clk 0:02:59.6]} 2. Nc3 {[%clk 0:03:00.9]}
2... g6 {[%clk 0:02:57.4]} 3. f4 {[%clk 0:03:01.1]} 3... Bg7 {[%clk 0:02:57.7]}
4. Nf3 {[%clk 0:03:01.4]} 4... e6 {[%clk 0:02:58.2]} 5. d4 {[%clk 0:02:58.2]}
5... cxd4 {[%clk 0:02:57.5]} 6. Nxd4 {[%clk 0:02:59.1]} 6... Ne7 {[%clk
0:02:57.3]} 7. Be3 {[%clk 0:02:59.3]} 7... O-O {[%clk 0:02:56.3]} 8. Qd2 {[%clk
0:02:59.8]} 8... Nbc6 {[%clk 0:02:56.7]} 9. O-O-O {[%clk 0:02:59.6]} 9... d5
{[%clk 0:02:50.6]} 10. e5 {[%clk 0:02:43.3]} 10... a6 {[%clk 0:02:43.9]} 11.
Nce2 {[%clk 0:02:29.3]} 11... b5 {[%clk 0:02:41]} 12. Nxc6 {[%clk 0:02:28]}
12... Nxc6 {[%clk 0:02:40.7]} 13. Nd4 {[%clk 0:02:28.5]} 13... Bb7 {[%clk
0:02:38.5]} 14. Kb1 {[%clk 0:02:19.6]} 14... Rc8 {[%clk 0:02:36.5]} 15. g4
{[%clk 0:02:14.2]} 15... Na5 {[%clk 0:02:28.7]} 16. h4 {[%clk 0:02:10.2]} 16...
Nc4 {[%clk 0:02:27.6]} 17. Bxc4 {[%clk 0:02:10.1]} 17... dxc4 {[%clk 0:02:26.8]}
18. h5 {[%clk 0:02:06.8]} 18... Bxh1 {[%clk 0:02:23.7]} 19. Rxh1 {[%clk
0:02:06]} 19... g5 {[%clk 0:01:30.1]} 20. c3 {[%clk 0:01:22.2]} 20... Qd5 {[%clk
0:01:23]} 21. Re1 {[%clk 0:01:05.1]} 21... b4 {[%clk 0:00:59.8]} 22. fxg5 {[%clk
0:00:17.2]} 22... bxc3 {[%clk 0:00:59]} 23. bxc3 {[%clk 0:00:18.1]} 23... Rb8+
{[%clk 0:00:58.6]} 24. Ka1 {[%clk 0:00:17.9]} 24... Rb7 {[%clk 0:00:55.5]} 25.
g6 {[%clk 0:00:16.6]} 25... Rfb8 {[%clk 0:00:52.8]} 26. gxf7+ {[%clk 0:00:16.6]}
26... Rxf7 {[%clk 0:00:51]} 27. g5 {[%clk 0:00:12.3]} 27... Rfb7 {[%clk
0:00:48.9]} 28. g6 {[%clk 0:00:11.8]} 28... Qe4 {[%clk 0:00:47.8]} 29. gxh7+
{[%clk 0:00:07.7]} 29... Qxh7 {[%clk 0:00:42.2]} 30. Qc1 {[%clk 0:00:07.6]}
30... Qd3 {[%clk 0:00:35.5]} 31. Rg1 {[%clk 0:00:06]} 31... Rb1+ {[%clk
0:00:34.5]} 32. Qxb1 {[%clk 0:00:05.3]} 32... Qxc3+ {[%clk 0:00:34.8]} 0-1